bitfinex/quotes_SOLUSD_20250929
["timestamp","ask_amount","ask_price","bid_price","bid_amount"]
[1759188804876,0.71,213.47,213.44,37.36503356]
[1759188805097,3.14988892,213.46,213.44,37.36503356]
[1759188805304,0.71,213.47,213.44,37.36503356]
[1759188805609,3.15001773,213.46,213.44,37.36503356]
[1759188805802,0.71,213.47,213.44,37.36503356]
[1759188805983,3.15001773,213.46,213.44,37.68503356]
[1759188806183,131.6,213.48,213.44,37.68503356]
[1759188806407,3.15022756,213.47,213.44,37.68503356]
[1759188806703,3.15022756,213.46,213.44,37.68503356]
[1759188806902,0.71,213.49,213.44,37.68503356]
[1759188807101,3.86037755,213.48,213.44,37.68503356]
[1759188807285,3.15037755,213.47,213.44,37.68503356]
[1759188807587,3.15037755,213.46,213.44,37.68503356]
[1759188807786,0.71,213.48,213.44,37.68503356]
[1759188807987,3.15047156,213.47,213.44,37.68503356]
[1759188808196,3.15047156,213.46,213.44,37.68503356]
[1759188808394,0.71,213.48,213.44,37.68503356]
[1759188808698,3.15056991,213.47,213.44,37.68503356]
[1759188808999,3.15056991,213.46,213.44,37.68503356]
[1759188809188,0.71,213.48,213.44,37.68503356]
[1759188809398,3.15066923,213.47,213.44,37.68503356]
[1759188809615,3.15066923,213.46,213.44,37.68503356]
[1759188809780,0.71,213.48,213.44,37.68503356]
[1759188809984,3.15066923,213.47,213.44,37.68503356]
[1759188810187,3.15066923,213.46,213.44,37.68503356]
[1759188810411,0.71,213.49,213.44,49.39792711]
[1759188810606,3.1506215,213.48,213.44,49.39792711]
[1759188810808,3.1506215,213.47,213.44,49.39792711]
[1759188811010,3.1506215,213.46,213.44,49.39792711]
[1759188811213,0.71,213.49,213.44,49.39792711]
[1759188811514,3.15087808,213.48,213.44,49.39792711]
[1759188811727,3.15087808,213.47,213.44,49.39792711]
[1759188812006,3.15087808,213.46,213.44,49.39792711]
[1759188812208,0.71,213.49,213.44,49.39792711]
[1759188812509,3.15084447,213.48,213.44,49.39792711]
[1759188812690,3.15084447,213.47,213.44,49.39792711]
[1759188812897,3.15084447,213.46,213.44,49.39792711]
[1759188813092,0.71,213.49,213.44,49.39792711]
[1759188813292,3.15086562,213.48,213.44,49.39792711]
[1759188813493,3.15086562,213.47,213.44,49.39792711]
[1759188813695,3.15086562,213.46,213.44,49.39792711]
[1759188813986,0.71,213.49,213.44,49.39792711]
[1759188814188,3.15086757,213.48,213.44,49.39792711]
[1759188814396,3.15086757,213.47,213.44,49.39792711]
[1759188814594,0.71,213.48,213.44,49.39792711]
[1759188814595,3.15086757,213.46,213.44,49.39792711]
[1759188814795,0.71,213.48,213.44,49.39792711]
[1759188815012,3.1510372,213.47,213.44,49.39792711]
[1759188815315,3.1510372,213.46,213.44,49.39792711]
[1759188815611,0.71,213.48,213.44,49.39792711]
[1759188815798,3.15106123,213.47,213.44,49.39792711]
[1759188816001,3.15106123,213.46,213.44,49.39792711]
[1759188816202,0.71,213.48,213.44,49.39792711]
[1759188816400,3.15108772,213.47,213.44,49.39792711]
[1759188816608,3.15108772,213.46,213.44,49.07792711]
[1759188816844,0.71,213.48,213.44,49.07792711]
[1759188817012,3.15108556,213.47,213.44,49.07792711]
[1759188817318,3.15108556,213.46,213.44,49.07792711]
[1759188817617,0.71,213.48,213.44,49.07792711]
[1759188817913,3.15103438,213.47,213.44,49.07792711]
[1759188818115,3.15103438,213.46,213.44,49.07792711]
[1759188818312,0.71,213.48,213.44,49.07792711]
[1759188818517,3.15099188,213.47,213.44,49.39792711]
[1759188818817,3.15099188,213.46,213.44,49.39792711]
[1759188818996,0.71,213.48,213.44,49.39792711]
[1759188819198,3.15099188,213.47,213.44,49.39792711]
[1759188819499,3.15099188,213.46,213.44,49.39792711]
[1759188819697,0.71,213.48,213.44,49.39792711]
[1759188819901,3.15098525,213.47,213.44,49.39792711]
[1759188820099,3.15098525,213.46,213.44,49.07792711]
[1759188820415,3.92462869,213.52,213.44,49.07792711]
[1759188820416,0.71,213.52,213.45,0.32]
[1759188820593,3.15096609,213.51,213.46,32.68]
[1759188820796,3.15096609,213.5,213.47,0.32]
[1759188821015,3.15096609,213.49,213.48,32.68]
[1759188821496,0.71,213.53,213.48,33.0]
[1759188821702,3.15103287,213.52,213.48,33.0]
[1759188821912,3.15103287,213.51,213.48,33.0]
[1759188822195,0.71,213.5,213.47,4.68431341]
[1759188822403,0.71,213.49,213.48,32.68]
[1759188823415,0.71,213.51,213.49,4.68406014]
[1759188823720,3.85965497,213.5,213.49,4.68406014]
[1759188823895,3.85965497,213.5,213.49,37.36406014]
[1759188826122,3.85965497,213.5,213.49,32.68]
[1759188826432,0.71,213.5,213.49,32.68]
[1759188829109,0.71,213.5,213.49,37.36406014]
[1759188830796,3.85824613,213.53,213.49,37.68406014]
[1759188831018,3.14824613,213.52,213.49,37.36406014]
[1759188831220,131.6,213.54,213.49,37.36406014]
[1759188831221,3.14824613,213.51,213.49,37.36406014]
[1759188831415,0.68,213.51,213.49,37.36406014]
[1759188831614,0.68,213.5,213.49,37.36406014]
[1759188832212,0.68,213.5,213.49,32.68]
[1759188833923,0.68,213.5,213.49,37.36406014]
[1759188834398,0.68,213.52,213.49,37.36406014]
[1759188834598,3.82858075,213.51,213.49,4.68406014]
[1759188834826,0.68,213.51,213.5,32.66]
[1759188835030,3.82858351,213.51,213.5,37.34384074]
[1759188835208,3.82858351,213.51,213.5,4.68384074]
[1759188835408,3.82858351,213.51,213.5,37.34384074]
[1759188838128,3.14858351,213.51,213.5,37.34384074]
[1759188838320,3.82858351,213.51,213.5,37.34384074]
[1759188839526,3.14858351,213.51,213.5,37.34384074]
[1759188839913,3.14858351,213.52,213.5,37.34384074]
[1759188840235,3.14858351,213.51,213.5,4.68384074]
[1759188840427,3.14858351,213.51,213.5,37.34384074]
[1759188841228,0.68,213.52,213.5,37.34384074]
[1759188841433,0.68,213.51,213.5,32.66]
[1759188842035,3.82986271,213.51,213.48,4.68406463]
[1759188842333,0.68,213.52,213.49,32.66]
[1759188842536,3.14986271,213.51,213.49,32.66]
[1759188842941,3.82986271,213.51,213.49,32.66]
[1759188843115,0.68,213.51,213.49,32.66]
[1759188843615,136.28298035,213.54,213.49,32.66]
[1759188843816,3.83024831,213.53,213.49,32.66]
[1759188844017,3.83024831,213.52,213.49,32.66]
[1759188844216,3.83024831,213.51,213.49,37.34398142]
[1759188844425,0.68,213.51,213.49,37.34398142]
[1759188845741,0.68,213.53,213.47,11.71116801]
[1759188845926,3.82899003,213.52,213.48,32.66]
[1759188846122,3.82899003,213.51,213.48,32.66]
[1759188846321,131.6,213.54,213.48,32.66]
[1759188846322,0.68,213.52,213.48,32.66]
[1759188846517,3.14904373,213.51,213.48,32.66]
[1759188846724,3.14904373,213.53,213.49,0.32]
[1759188846945,3.14904373,213.52,213.5,32.66]
[1759188847124,3.14904373,213.53,213.5,32.66]
[1759188847323,3.14904373,213.52,213.5,32.66]
[1759188847946,3.14904373,213.52,213.51,4.68362137]
[1759188848945,3.82904373,213.52,213.51,4.68362137]
[1759188849149,0.68,213.52,213.51,4.68362137]
[1759188849445,3.82904373,213.52,213.51,4.68362137]
[1759188849621,0.68,213.52,213.51,4.68362137]
[1759188849823,3.82904373,213.52,213.51,4.68362137]
[1759188850019,0.68,213.52,213.51,4.68362137]
[1759188850224,3.82904373,213.52,213.5,32.66]
[1759188850524,3.14904373,213.53,213.5,37.34384057]
[1759188850737,3.82904373,213.52,213.5,37.34384057]
[1759188850935,0.68,213.52,213.5,37.34384057]
[1759188851136,3.82904373,213.52,213.5,37.34384057]
[1759188851335,0.68,213.51,213.5,37.34384057]
[1759188851519,0.68,213.51,213.5,32.66]
[1759188851737,0.68,213.51,213.5,37.34384074]
[1759188852938,0.68,213.51,213.47,11.71116801]
[1759188853143,0.68,213.51,213.48,32.66]
[1759188854245,0.68,213.51,213.49,4.68406014]
[1759188854432,0.68,213.51,213.5,32.66]
[1759188855949,0.68,213.51,213.5,37.34384074]
[1759188856653,131.6,213.54,213.5,37.34384074]
[1759188856654,0.72,213.53,213.5,37.34384074]
[1759188856855,3.86607568,213.52,213.5,37.34384074]
[1759188857054,0.72,213.52,213.5,37.34384074]
[1759188858049,0.72,213.51,213.5,37.34384074]
[1759188858252,3.14653447,213.53,213.5,37.34384074]
[1759188858554,3.86653447,213.52,213.5,37.34384074]
[1759188858741,0.72,213.52,213.5,37.34384074]
[1759188859532,131.6,213.54,213.5,37.34384074]
[1759188859734,0.72,213.51,213.5,37.34384074]
[1759188859934,3.14656872,213.52,213.5,37.34384074]
[1759188860142,0.72,213.52,213.5,37.34384074]
[1759188862345,3.14769038,213.51,213.5,37.34384074]
[1759188863861,0.65,213.53,213.5,37.34384074]
[1759188864157,3.7982658,213.52,213.5,37.34384074]
[1759188864352,3.1482658,213.51,213.5,37.34384074]
[1759188865944,3.1482658,213.51,213.5,37.66384074]
[1759188866145,0.65,213.6,213.53,26.0]
[1759188866348,3.14926451,213.59,213.54,32.98]
[1759188866548,3.14926451,213.58,213.55,0.32]
[1759188866842,3.14926451,213.59,213.56,32.66]
[1759188867238,0.65,213.58,213.53,26.0]
[1759188867441,3.79926451,213.57,213.54,32.66]
[1759188867662,0.65,213.56,213.54,32.66]
[1759188867842,0.65,213.55,213.54,37.34296337]
[1759188870659,0.65,213.55,213.54,32.66]
[1759188872052,0.65,213.55,213.54,32.64]
[1759188889273,0.65,213.55,213.53,32.64]
[1759188889575,0.65,213.54,213.53,32.64]
[1759188890885,14.73549898,213.54,213.53,32.64]
[1759188891383,19.41867862,213.54,213.51,32.64]
[1759188891580,0.69,213.53,213.47,30.68448335]
[1759188891915,0.69,213.52,213.48,32.64]
[1759188892767,0.69,213.52,213.48,37.32427314]
[1759188894667,0.69,213.52,213.48,37.64427314]
[1759188894868,14.77549898,213.53,213.48,37.64427314]
[1759188895269,14.77549898,213.53,213.48,5.00427314]
[1759188895585,0.69,213.52,213.49,32.64]
[1759188895789,14.77549898,213.53,213.49,32.64]
[1759188896272,0.69,213.52,213.49,37.32403715]
[1759188898387,14.08549898,213.53,213.49,37.32403715]
[1759188898688,14.08549898,213.53,213.49,37.64403715]
[1759188898689,14.77549898,213.53,213.49,37.64403715]
[1759188899572,0.69,213.52,213.49,37.32403715]
[1759188900169,0.69,213.51,213.49,37.32403715]
[1759188900486,0.69,213.5,213.49,32.64]
[1759188901374,14.77549898,213.5,213.49,32.64]
[1759188901975,0.69,213.5,213.49,32.64]
[1759188905485,14.08682178,213.51,213.49,37.32400779]
[1759188905685,3.14842496,213.54,213.5,0.32]
[1759188905895,3.14842496,213.54,213.51,32.64]
[1759188906287,0.69,213.53,213.51,32.64]
[1759188906484,14.08616035,213.52,213.51,32.64]
[1759188906675,0.69,213.53,213.51,32.64]
[1759188907570,14.77549898,213.53,213.51,32.64]
[1759188908594,14.77549898,213.53,213.51,37.32346066]
[1759188913504,14.77549898,213.53,213.51,32.64]
[1759188914595,0.69,213.52,213.45,26.0]
[1759188914786,0.68,213.51,213.46,32.64]
[1759188914980,0.68,213.5,213.45,11.71234481]
[1759188915186,4.68320352,213.53,213.46,32.64]
[1759188915390,14.08549898,213.51,213.46,32.64]
[1759188915593,0.68,213.5,213.47,4.68449899]
[1759188915891,0.68,213.5,213.48,32.64]
[1759188920194,0.68,213.5,213.48,37.32427759]
[1759188922109,0.68,213.5,213.48,32.64]
[1759188922308,0.66,213.5,213.48,32.64]
[1759188922517,0.66,213.49,213.48,32.64]
[1759188923090,0.66,213.49,213.44,11.71283866]
[1759188923091,0.66,213.49,213.42,26.32]
[1759188923417,0.66,213.48,213.44,0.32]
[1759188923594,0.66,213.48,213.45,32.64]
[1759188923998,0.66,213.48,213.45,37.32480189]
[1759188925810,0.66,213.49,213.45,37.64480189]
[1759188926593,0.66,213.48,213.45,37.32480189]
[1759188927501,0.66,213.49,213.45,37.32480189]
[1759188927702,4.68365997,213.51,213.45,37.32480189]
[1759188927905,0.66,213.5,213.45,37.32480189]
[1759188928102,0.66,213.49,213.45,37.32480189]
[1759188929311,4.68365997,213.51,213.45,37.32480189]
[1759188929489,0.66,213.48,213.45,37.32480189]
[1759188929694,0.66,213.5,213.45,37.32480189]
[1759188929904,0.66,213.49,213.45,37.64480189]
[1759188930616,0.66,213.49,213.45,37.32480189]
[1759188931318,0.66,213.49,213.45,37.64480189]
[1759188931906,0.66,213.49,213.45,37.32480189]
[1759188932314,0.66,213.49,213.45,37.64480189]
[1759188933907,0.66,213.49,213.45,37.32480189]
[1759188935022,0.66,213.49,213.45,37.64480189]
[1759188945938,4.68384465,213.5,213.45,32.64]
[1759188946115,0.66,213.48,213.45,32.64]
[1759188947227,7.82868864,213.5,213.45,32.64]
[1759188947427,0.66,213.47,213.45,32.64]
[1759188948641,0.66,213.46,213.39,14.23335006]
[1759188948946,0.66,213.45,213.36,0.32]
[1759188949119,39.59559401,213.44,213.37,32.62]
[1759188949321,0.66,213.43,213.37,32.62]
[1759188949520,0.66,213.44,213.39,4.68625521]
[1759188950031,0.66,213.44,213.4,0.32]
[1759188950238,0.66,213.44,213.39,4.68625521]
[1759188950537,0.66,213.43,213.39,5.00625521]
[1759188952315,4.68496884,213.45,213.39,5.00625521]
[1759188952316,4.68496884,213.45,213.39,4.68625521]
[1759188952511,4.68496884,213.45,213.37,58.19652842]
[1759188952512,0.67,213.42,213.38,4.68647483]
[1759188952710,0.67,213.41,213.37,32.62]
[1759188952916,0.67,213.4,213.37,37.30667918]
[1759188953125,0.67,213.39,213.37,37.30667918]
[1759188953366,0.67,213.41,213.37,37.30667918]
[1759188953520,0.67,213.41,213.37,37.62667918]
[1759188953840,0.67,213.41,213.37,37.30667918]
[1759188954216,0.67,213.41,213.37,37.62667918]
[1759188960526,18.77860735,213.44,213.37,37.30667918]
[1759188960527,0.67,213.4,213.37,37.30667918]
[1759188960733,0.67,213.39,213.33,11.71863302]
[1759188960940,0.67,213.38,213.34,32.62]
[1759188961126,0.67,213.38,213.34,37.62735352]
[1759188961328,0.67,213.38,213.34,49.34573732]
[1759188961646,0.67,213.4,213.35,0.32]
[1759188962650,16.39839365,213.43,213.36,4.68691413]
[1759188962950,0.67,213.39,213.36,4.68691413]
[1759188965447,0.67,213.42,213.37,32.96]
[1759188965636,0.67,213.41,213.37,32.96]
[1759188965956,0.67,213.41,213.37,32.64]
[1759188966756,0.67,213.41,213.38,4.68647483]
[1759188970750,0.67,213.42,213.38,4.68647483]
[1759188972145,26.0,213.44,213.38,4.68647483]
[1759188972345,0.67,213.43,213.38,4.68647483]
[1759188972650,0.67,213.42,213.38,4.68647483]
[1759188972837,0.67,213.41,213.37,32.96]
[1759188973149,0.67,213.41,213.37,32.64]
[1759188973341,0.67,213.4,213.37,32.64]
[1759188973531,0.67,213.39,213.37,32.64]
[1759188973735,0.67,213.38,213.37,32.64]
[1759188974051,0.67,213.38,213.35,4.68713381]
[1759188977048,4.68606075,213.4,213.34,37.30730336]
[1759188977254,0.7,213.37,213.34,37.30730336]
[1759188977451,0.7,213.36,213.29,0.42]
[1759188977653,0.7,213.36,213.3,4.68801293]
[1759188977837,0.7,213.36,213.3,37.62801293]
[1759188978037,0.7,213.35,213.3,37.62801293]
[1759188978634,0.7,213.37,213.31,0.32]
[1759188979339,14.09741313,213.39,213.31,0.32]
[1759188979650,0.7,213.4,213.31,0.32]
[1759188980149,0.7,213.4,213.32,16.40727544]
[1759188980455,0.7,213.4,213.33,32.94]
[1759188982357,0.7,213.4,213.34,4.68735352]
[1759188982550,0.7,213.4,213.34,5.00735352]
[1759188983758,0.65,213.39,213.34,5.00735352]
[1759188988958,0.65,213.39,213.34,16.72573732]
[1759188989657,0.65,213.41,213.35,0.32]
[1759188990363,0.65,213.41,213.36,4.68691413]
[1759188990564,0.65,213.41,213.33,32.62]
[1759188990565,0.65,213.4,213.33,32.62]
[1759188990770,0.65,213.39,213.34,4.68735352]
[1759188990955,0.65,213.38,213.33,37.30754699]
[1759188991158,0.65,213.37,213.33,32.62]
[1759188991356,0.65,213.36,213.33,32.62]
[1759188992173,0.65,213.36,213.33,37.30754659]
[1759188997976,0.65,213.36,213.32,4.68779298]
[1759188999277,4.68630245,213.39,213.32,4.68779298]
[1759188999472,0.65,213.35,213.32,4.68779298]
[1759188999872,0.65,213.36,213.32,4.68779298]
[1759189000856,4.68634591,213.39,213.32,4.68779298]
[1759189001057,0.65,213.38,213.32,4.68779298]
[1759189001270,0.65,213.37,213.32,4.68779298]
[1759189001484,0.65,213.36,213.32,4.68779298]
[1759189002254,0.65,213.35,213.32,4.68779298]
[1759189002963,4.68634591,213.39,213.32,4.68779298]
[1759189003162,0.65,213.34,213.32,4.68779298]
[1759189003856,0.65,213.35,213.32,4.68779298]
[1759189005176,0.65,213.37,213.32,5.00779298]
[1759189006171,0.65,213.36,213.32,5.00779298]
[1759189007978,0.65,213.35,213.32,4.68779298]
[1759189011202,0.65,213.37,213.32,5.00779298]
[1759189011391,0.68,213.36,213.32,5.00779298]
[1759189011688,0.68,213.36,213.32,4.68779298]
[1759189014989,0.68,213.36,213.32,5.00779298]
[1759189015373,0.68,213.36,213.32,4.68779298]
[1759189017594,0.68,213.36,213.32,5.00779298]
[1759189017793,16.73903783,213.39,213.32,16.72727544]
[1759189017989,0.68,213.37,213.32,16.72727544]
[1759189020584,132.28,213.39,213.33,0.32]
[1759189020974,132.28,213.39,213.34,4.68735352]
[1759189021175,0.68,213.38,213.34,4.68735352]
[1759189021383,131.6,213.39,213.34,4.68735352]
[1759189021384,0.68,213.37,213.34,4.68735352]
[1759189022073,131.6,213.39,213.34,4.68735352]
[1759189022277,0.68,213.38,213.34,4.68735352]
[1759189022497,131.6,213.39,213.34,4.68735352]
[1759189022686,0.68,213.38,213.34,4.68735352]
[1759189022892,0.68,213.37,213.34,4.68735352]
[1759189023092,0.68,213.38,213.34,4.68735352]
[1759189023293,131.6,213.39,213.35,0.32]
[1759189023492,132.28,213.39,213.35,0.32]
[1759189025117,132.28,213.39,213.36,4.68691413]
[1759189027311,0.68,213.38,213.34,11.7183838]
[1759189030524,131.6,213.39,213.34,4.68735352]
[1759189030726,0.68,213.37,213.34,4.68735352]
[1759189031212,0.68,213.36,213.34,4.68735352]
[1759189032319,0.68,213.37,213.32,16.72727544]
[1759189033618,0.68,213.37,213.33,0.32]
[1759189035121,0.68,213.37,213.34,4.68735352]
[1759189035421,132.26,213.39,213.34,16.72573732]
[1759189035818,0.66,213.38,213.34,16.40573732]
[1759189036324,0.66,213.37,213.34,16.40573732]
[1759189038113,0.66,213.37,213.34,11.7183838]
[1759189042835,131.6,213.39,213.32,16.40727544]
[1759189043028,0.71,213.37,213.32,16.72727544]
[1759189043210,0.71,213.37,213.32,16.40727544]
[1759189043413,0.71,213.37,213.32,16.72727544]
[1759189044610,14.09542604,213.38,213.32,30.82270147]
[1759189044811,0.71,213.37,213.32,30.82270147]
[1759189045109,0.71,213.36,213.32,30.82270147]
[1759189048534,14.09542604,213.38,213.32,30.82270147]
[1759189048734,0.71,213.37,213.32,30.82270147]
[1759189050638,14.09542604,213.38,213.32,30.82270147]
[1759189050936,0.71,213.37,213.32,4.68779298]
[1759189051135,0.71,213.36,213.32,4.68779298]
[1759189051335,0.71,213.35,213.32,4.68779298]
[1759189051534,0.71,213.34,213.32,4.68779298]
[1759189051745,14.09741313,213.34,213.32,4.68779298]
[1759189051944,0.71,213.33,213.32,4.68779298]
[1759189052444,0.71,213.33,213.31,32.62]
[1759189052634,0.71,213.32,213.31,32.62]
[1759189053150,0.71,213.32,213.31,37.30801275]
[1759189053847,0.71,213.32,213.31,4.68801275]
[1759189054220,0.71,213.32,213.3,4.68823253]
[1759189057735,14.09741313,213.34,213.3,4.68823253]
[1759189057929,0.71,213.33,213.3,4.68823253]
[1759189058136,0.71,213.32,213.3,4.68823253]
[1759189060549,0.71,213.32,213.3,16.40881387]
[1759189060841,14.09741313,213.34,213.3,16.72881387]
[1759189061228,14.80741313,213.34,213.3,16.72881387]
[1759189061538,14.09741313,213.34,213.3,16.40881387]
[1759189061747,0.71,213.33,213.3,16.40881387]
[1759189063551,0.71,213.33,213.32,4.68779298]
[1759189069549,0.71,213.35,213.32,16.40727544]
[1759189069741,0.71,213.35,213.33,32.6]
[1759189070329,14.80608833,213.36,213.33,32.6]
[1759189071554,14.09608833,213.36,213.34,4.68735352]
[1759189071751,0.71,213.35,213.34,4.68735352]
[1759189074456,0.71,213.35,213.33,37.28755338]
[1759189074658,0.71,213.34,213.33,37.28755338]
[1759189077147,0.71,213.34,213.33,32.6]
[1759189077660,0.71,213.34,213.33,37.28757324]
[1759189079055,14.09608833,213.35,213.33,37.28757324]
[1759189079359,0.71,213.37,213.33,37.28757324]
[1759189079539,0.71,213.36,213.33,37.28757324]
[1759189079748,14.09675069,213.36,213.33,37.60757324]
[1759189079945,14.09675069,213.36,213.33,49.32650634]
[1759189080259,0.71,213.38,213.33,49.32650634]
[1759189080463,14.09608834,213.37,213.33,49.32650634]
[1759189080757,14.80608834,213.37,213.33,49.32650634]
[1759189081463,0.71,213.36,213.33,49.00650634]
[1759189082456,14.80608834,213.37,213.33,49.00650634]
[1759189082945,0.71,213.36,213.33,49.00650634]
[1759189083863,14.80608834,213.37,213.33,49.00650634]
[1759189084454,0.71,213.36,213.33,49.00650634]
[1759189085151,14.09608834,213.37,213.33,49.00650634]
[1759189085562,0.71,213.36,213.33,49.00650634]
[1759189089766,14.09608834,213.37,213.33,49.32650634]
[1759189090145,14.80608834,213.37,213.33,49.32650634]
[1759189090566,14.80608834,213.37,213.33,49.00650634]
[1759189090771,0.71,213.36,213.33,49.00650634]
[1759189092266,14.09608834,213.37,213.33,49.00650634]
[1759189092448,0.71,213.35,213.33,37.28757324]
[1759189092748,0.71,213.36,213.33,37.28757324]
[1759189094591,0.68,213.35,213.33,37.28757324]
[1759189094779,0.68,213.34,213.33,37.28757324]
[1759189095472,0.68,213.34,213.3,16.40836677]
[1759189095678,0.68,213.34,213.31,46.69608833]
[1759189095865,0.68,213.34,213.31,32.6]
[1759189096066,0.68,213.34,213.32,14.09608834]
[1759189096265,0.68,213.34,213.33,32.6]
[1759189101378,0.68,213.34,213.32,32.6]
[1759189101379,14.77608834,213.34,213.32,32.6]
[1759189101581,0.65,213.33,213.32,32.6]
[1759189102157,0.65,213.33,213.31,32.6]
[1759189102364,0.65,213.32,213.31,32.6]
[1759189102767,0.65,213.32,213.31,37.28801275]
[1759189103086,14.74608834,213.34,213.31,37.28801275]
[1759189103386,0.65,213.33,213.31,37.28801275]
[1759189104969,0.65,213.33,213.3,4.68823253]
[1759189105169,0.65,213.33,213.31,32.6]
[1759189105469,0.65,213.36,213.31,32.92]
[1759189105774,0.65,213.35,213.31,32.92]
[1759189106082,0.65,213.34,213.31,32.6]
[1759189106674,0.65,213.34,213.32,4.68779298]
[1759189110289,14.74741312,213.37,213.33,32.58]
[1759189110467,0.65,213.36,213.33,32.58]
[1759189111571,0.65,213.35,213.33,32.58]
[1759189111887,0.65,213.34,213.33,32.58]
[1759189112284,0.65,213.34,213.33,37.26757324]
[1759189112672,14.09741313,213.38,213.33,37.26757324]
[1759189112873,0.65,213.36,213.33,37.26757324]
[1759189113180,0.65,213.35,213.33,37.26757324]
[1759189115185,0.65,213.37,213.33,37.26757324]
[1759189115695,0.65,213.36,213.33,37.26757324]
[1759189116787,0.65,213.36,213.32,16.40706001]
[1759189117119,0.65,213.36,213.33,13.59559401]
[1759189117295,0.65,213.36,213.33,46.17559401]
[1759189118092,0.65,213.36,213.34,4.68735352]
[1759189127493,0.65,213.39,213.35,46.17559401]
[1759189127679,0.65,213.38,213.35,46.17559401]
[1759189128698,0.65,213.37,213.35,46.17559401]
[1759189128903,0.65,213.36,213.35,46.17559401]
[1759189129082,0.65,213.36,213.33,13.59559401]
[1759189129280,0.65,213.35,213.34,46.17559401]
[1759189130101,18.78105416,213.39,213.34,50.86291602]
[1759189130298,0.65,213.37,213.34,50.86291602]
[1759189130501,0.65,213.36,213.34,50.86291602]
[1759189131594,18.78105416,213.39,213.34,50.86291602]
[1759189131793,0.69,213.37,213.34,50.86291602]
[1759189135592,0.69,213.36,213.34,46.17559401]
[1759189136383,0.69,213.35,213.34,32.58]
[1759189136581,0.69,213.35,213.34,46.17559401]
[1759189136901,0.69,213.36,213.34,46.17559401]
[1759189142303,0.69,213.36,213.35,13.59559401]
[1759189143709,0.69,213.36,213.34,13.59559401]
[1759189143906,0.69,213.35,213.3,4.68820332]
[1759189144208,0.69,213.34,213.31,46.17559401]
[1759189144391,0.69,213.33,213.31,46.17559401]
[1759189144985,0.69,213.32,213.31,46.17559401]
[1759189147103,4.68726255,213.35,213.31,46.17559401]
[1759189147305,0.69,213.34,213.31,46.17559401]
[1759189147613,0.69,213.33,213.31,46.17559401]
[1759189149113,14.0967507,213.36,213.32,0.32]
[1759189149308,14.0967507,213.36,213.33,32.58]
[1759189149694,0.69,213.37,213.33,32.58]
[1759189150205,0.69,213.37,213.34,4.68735352]
[1759189151098,0.69,213.36,213.34,4.68735352]
[1759189152202,0.69,213.36,213.34,18.28294753]
[1759189155721,0.69,213.36,213.34,13.59559401]
[1759189155930,0.67,213.35,213.34,13.59559401]
[1759189157131,4.68672144,213.37,213.35,13.59559401]
[1759189157424,160.7465525,213.36,213.28,18.88608446]
[1759189157602,7.83358819,213.35,213.29,46.25559401]
[1759189157797,0.67,213.34,213.29,46.25559401]
[1759189158201,0.67,213.33,213.29,46.25559401]
[1759189158404,0.67,213.32,213.29,46.25559401]
[1759189158808,0.67,213.32,213.29,50.94403035]
[1759189161123,4.68741663,213.34,213.29,46.25559401]
[1759189161427,0.72,213.33,213.29,50.94403329]
[1759189161730,0.72,213.32,213.29,50.94403329]
[1759189162110,0.72,213.31,213.29,0.1]
[1759189162624,0.72,213.31,213.29,4.78839883]
[1759189164926,0.72,213.31,213.29,0.1]
[1759189165918,0.72,213.31,213.29,4.78844986]
[1759189168417,0.72,213.31,213.3,13.59559401]
[1759189168612,9.37457842,213.35,213.3,4.68823253]
[1759189168813,0.72,213.33,213.3,4.68823253]